bitfinex/quotes_SOLUSD_20240916
["timestamp","ask_amount","ask_price","bid_price","bid_amount"]
[1726529735982,0.2584707,131.98,131.97,12.42465266]
[1726529746587,0.2584707,131.98,131.97,42.42465266]
[1726529747183,0.2584707,131.98,131.97,43.939666]
[1726529747469,0.2584707,131.98,131.97,30.0]
[1726529747669,0.2584707,131.98,131.97,42.42465266]
[1726529754999,0.2584707,132.02,131.97,42.42465266]
[1726529755000,0.0169414,132.02,131.97,42.42465266]
[1726529755297,0.0169414,132.02,131.99,12.42465266]
[1726529757800,0.0169414,132.02,131.98,12.42465266]
[1726529758110,0.0169414,132.02,131.99,10.10257571]
[1726529758273,0.0169414,132.02,132.0,10.1014095]
[1726529758473,0.0169414,132.02,131.99,10.1014095]
[1726529758670,0.0169414,132.02,131.98,12.42465266]
[1726529758901,0.0169414,132.02,131.99,10.10228303]
[1726529759086,0.0169414,132.02,131.98,12.42465266]
[1726529759282,0.0169414,132.02,132.0,12.42465266]
[1726529761493,0.0169414,132.02,131.97,30.0]
[1726529761494,0.0169414,132.02,131.99,10.10033463]
[1726529761798,0.0169414,132.02,131.98,22.52460813]
[1726529761996,0.0169414,132.02,131.98,12.42465266]
[1726529762178,0.0169414,132.02,131.99,10.09853458]
[1726529762379,0.0169414,132.02,131.98,12.42465266]
[1726529762597,0.0169414,132.02,131.99,10.09823864]
[1726529762801,0.0169414,132.02,131.99,1.51503448]
[1726529762996,0.0169414,132.02,131.99,10.09901281]
[1726529763278,0.0169414,132.02,131.98,12.42465266]
[1726529763479,0.0169414,132.02,131.99,11.61420334]
[1726529763690,0.0169414,132.02,131.99,1.5150325]
[1726529764096,0.0169414,132.02,131.98,12.42465266]
[1726529764304,0.0169414,132.02,131.99,10.09629495]
[1726529764506,0.0169414,132.02,131.98,12.42465266]
[1726529764711,0.0169414,132.02,131.99,10.09629057]
[1726529764893,0.0169414,132.02,131.98,12.42465266]
[1726529765091,0.0169414,132.02,131.99,10.0958411]
[1726529765305,0.0169414,132.02,131.98,12.42465266]
[1726529765491,0.0169414,132.02,131.99,10.09533058]
[1726529765692,0.0169414,132.02,131.98,12.42465266]
[1726529765894,0.0169414,132.02,131.99,10.09629464]
[1726529766199,0.0169414,132.02,131.98,12.42465266]
[1726529766200,20.3209414,132.04,131.98,12.42465266]
[1726529766407,20.3209414,132.04,131.99,22.52087045]
[1726529766579,20.3209414,132.04,131.99,12.42465266]
[1726529767922,20.3209414,132.04,131.98,12.42465266]
[1726529768283,20.3209414,132.04,131.99,10.09612128]
[1726529768499,20.3209414,132.04,131.98,12.42465266]
[1726529768696,20.3209414,132.04,131.99,10.09698518]
[1726529768896,20.3209414,132.04,131.98,12.42465266]
[1726529769098,20.3209414,132.04,131.99,10.09698661]
[1726529769298,20.3209414,132.04,131.98,12.42465266]
[1726529769503,20.3209414,132.04,131.99,10.09686994]
[1726529769704,20.3209414,132.04,131.98,12.42465266]
[1726529769884,20.3209414,132.04,131.99,10.09687081]
[1726529770084,20.3209414,132.04,131.98,12.42465266]
[1726529770283,20.3209414,132.04,131.99,10.09698662]
[1726529770484,20.3209414,132.04,132.0,10.09698662]
[1726529770685,20.3209414,132.04,131.98,12.42465266]
[1726529771500,20.3209414,132.04,132.0,12.42465266]
[1726529772808,20.3209414,132.04,131.99,12.42465266]
[1726529775183,20.3209414,132.04,131.97,20.0]
[1726529775489,20.3209414,132.04,131.98,30.0]
[1726529776610,20.3209414,132.04,131.97,12.42465266]
[1726529777808,43.1109414,132.04,131.97,12.42465266]
[1726529778009,20.3209414,132.04,131.97,12.42465266]
[1726529778711,20.3209414,132.04,131.98,12.42465266]
[1726529780107,20.3209414,132.04,131.99,1.51505201]
[1726529780813,20.3209414,132.04,131.98,12.42465266]
[1726529784403,20.3209414,132.04,131.99,1.5150522]
[1726529785906,20.3209414,132.04,131.99,13.93970486]
[1726529786807,20.3209414,132.04,132.0,1.51493902]
[1726529790506,20.3209414,132.04,131.99,12.42465266]
[1726529790802,20.3209414,132.04,132.0,12.42465266]
[1726529802403,20.3209414,132.04,131.96,23.776884]
[1726529802627,20.3209414,132.04,131.98,12.42465266]
[1726529804105,20.3209414,132.04,131.99,12.42465266]
[1726529807730,20.3209414,132.04,132.0,12.42465266]
[1726529810430,20.3209414,132.04,132.01,12.64325223]
[1726529810741,20.3209414,132.04,132.0,12.42465266]
[1726529811034,27.8944414,132.04,132.01,12.64311881]
[1726529811244,27.8944414,132.04,131.99,21.77294536]
[1726529811439,27.8944414,132.04,132.0,12.64331398]
[1726529811623,27.8944414,132.04,132.01,12.64331398]
[1726529811823,27.8944414,132.04,131.99,21.77294536]
[1726529812046,20.3209414,132.04,132.0,12.64176644]
[1726529812543,20.3209414,132.04,132.01,12.64176644]
[1726529812724,20.3209414,132.04,131.99,21.77294536]
[1726529812922,20.3209414,132.04,132.0,12.64148281]
[1726529813131,20.3209414,132.04,132.01,12.64148281]
[1726529813330,20.3209414,132.04,131.99,21.77294536]
[1726529813634,20.3209414,132.04,132.0,12.64128569]
[1726529813818,20.3209414,132.04,132.01,12.64128569]
[1726529814021,20.3209414,132.04,131.99,21.77294536]
[1726529814336,20.3209414,132.04,132.0,12.64128571]
[1726529814520,20.3209414,132.04,132.01,12.64128571]
[1726529814719,20.3209414,132.04,131.99,21.77294536]
[1726529814941,20.3209414,132.04,132.0,12.64148684]
[1726529815139,20.3209414,132.04,132.01,12.64148684]
[1726529815325,20.3209414,132.04,132.02,12.42465266]
[1726529815521,20.3209414,132.04,132.0,9.3482927]
[1726529815720,20.3209414,132.04,131.99,21.77294536]
[1726529815925,20.3209414,132.04,131.99,9.3482927]
[1726529816623,23.776884,132.03,131.98,12.42465266]
[1726529817025,23.776884,132.03,131.99,9.3470692]
[1726529817223,31.350984,132.03,131.99,9.34707669]
[1726529818319,54.140984,132.03,131.99,9.34707669]
[1726529818525,31.350984,132.03,131.99,9.34707669]
[1726529820632,31.350984,132.03,131.97,12.42465266]
[1726529820833,31.350984,132.03,131.99,9.34703475]
[1726529822334,23.776884,132.03,131.99,9.34703475]
[1726529822537,27.8945414,132.04,131.99,21.77168741]
[1726529822748,20.3209414,132.04,131.99,21.77168741]
[1726529823131,20.3209414,132.04,131.99,12.42465266]
[1726529823452,20.3209414,132.04,131.99,21.77170049]
[1726529824153,20.3209414,132.04,132.0,12.42465266]
[1726529828452,43.1109414,132.04,132.0,12.42465266]
[1726529828651,20.3209414,132.04,132.0,12.42465266]
[1726529830553,20.3209414,132.04,132.0,21.77171773]
[1726529830948,20.3209414,132.04,132.01,10.11174224]
[1726529831145,20.3209414,132.04,132.02,10.11174224]
[1726529831349,20.3209414,132.04,132.0,9.34706507]
[1726529831547,20.3209414,132.04,132.01,10.11189223]
[1726529831737,20.3209414,132.04,132.02,10.11189223]
[1726529831936,20.3209414,132.04,131.99,21.77171773]
[1726529832165,20.3209414,132.04,132.0,10.11190147]
[1726529832362,27.8944414,132.04,132.01,10.11190147]
[1726529832543,27.8944414,132.04,132.02,10.11190147]
[1726529832742,27.8944414,132.04,132.0,9.34706507]
[1726529833043,27.8944414,132.04,132.01,10.11166372]
[1726529833256,51.351184,132.03,132.02,10.11166372]
[1726529833555,51.351184,132.03,131.98,9.34706507]
[1726529833763,51.351184,132.03,131.99,10.11425292]
[1726529834066,51.351184,132.03,132.0,10.11425077]
[1726529834249,51.351184,132.03,131.96,12.42465266]
[1726529834454,51.351184,132.03,132.01,10.11416642]
[1726529834650,51.351184,132.03,131.98,9.34799256]
[1726529834854,51.351184,132.03,131.99,10.11417178]
[1726529835052,51.351184,132.03,132.0,10.11417178]
[1726529835359,51.351184,132.03,132.01,10.11417178]
[1726529835661,51.351184,132.03,131.98,9.34799256]
[1726529835844,51.351184,132.03,131.99,10.11427182]
[1726529836045,51.351184,132.03,132.0,10.11427182]
[1726529836244,51.351184,132.03,132.01,10.11427182]
[1726529836462,51.351184,132.03,131.98,9.34799256]
[1726529836763,51.351184,132.03,131.99,10.11444267]
[1726529837059,51.351184,132.03,131.98,9.34799256]
[1726529837060,51.351184,132.03,132.0,10.11444267]
[1726529837359,51.351184,132.03,132.01,10.11444267]
[1726529837563,51.351184,132.03,131.96,12.42465266]
[1726529837864,51.351184,132.03,131.98,9.3480893]
[1726529838066,51.351184,132.03,131.99,10.1142849]
[1726529838253,51.351184,132.03,132.0,10.1142849]
[1726529838448,51.351184,132.03,132.01,10.1142849]
[1726529838639,51.351184,132.03,131.98,9.3480893]
[1726529838844,51.351184,132.03,131.99,10.11511045]
[1726529839044,51.351184,132.03,132.0,10.11511045]
[1726529839267,51.351184,132.03,132.01,10.11511045]
[1726529839461,51.351184,132.03,131.98,9.3480893]
[1726529839763,51.351184,132.03,131.99,10.11495888]
[1726529839961,51.351184,132.03,132.0,10.11495888]
[1726529840265,51.351184,132.03,131.97,12.42465266]
[1726529840266,51.351184,132.03,131.97,21.77274196]
[1726529840448,51.351184,132.03,131.98,10.11756924]
[1726529840647,51.351184,132.03,131.99,10.11756924]
[1726529840850,51.351184,132.03,132.0,10.11756924]
[1726529841140,51.351184,132.03,131.97,21.77274196]
[1726529841345,51.351184,132.03,131.98,10.11677786]
[1726529841571,51.351184,132.03,131.99,10.11677786]
[1726529841760,51.351184,132.03,132.0,10.11677786]
[1726529841964,51.351184,132.03,131.97,21.77274196]
[1726529842164,51.351184,132.03,131.98,10.11723827]
[1726529842360,51.351184,132.03,131.97,21.77274196]
[1726529842361,51.351184,132.03,131.99,10.11723827]
[1726529842568,51.351184,132.03,132.0,10.11723827]
[1726529842869,51.351184,132.03,131.97,21.77274196]
[1726529843178,51.351184,132.03,131.98,10.1168613]
[1726529843474,51.351184,132.03,131.99,10.1168613]
[1726529843765,51.351184,132.03,132.0,10.1168613]
[1726529843968,51.351184,132.03,131.97,21.77274196]
[1726529844143,51.351184,132.03,131.98,10.11709833]
[1726529844464,51.351184,132.03,131.99,10.11709833]
[1726529844658,51.351184,132.03,132.0,10.11709833]
[1726529844846,51.351184,132.03,131.97,21.77274196]
[1726529845246,51.351184,132.03,131.98,20.23255598]
[1726529845453,51.351184,132.03,131.99,10.11624384]
[1726529845758,51.351184,132.03,132.0,10.11624384]
[1726529846064,51.351184,132.03,132.01,10.11624384]
[1726529846262,51.351184,132.03,131.98,19.4660696]
[1726529846558,51.351184,132.03,131.99,10.1159558]
[1726529846764,51.351184,132.03,132.0,10.1159558]
[1726529846963,51.351184,132.03,131.98,10.11631214]
[1726529847155,51.351184,132.03,131.99,10.11645547]
[1726529847345,51.351184,132.03,132.0,10.11645547]
[1726529847542,51.351184,132.03,131.98,10.11631214]
[1726529847768,51.351184,132.03,131.99,10.11643395]
[1726529847973,51.351184,132.03,132.0,10.11642469]
[1726529848264,51.351184,132.03,131.98,10.11631214]
[1726529848651,51.351184,132.03,131.99,10.11654092]
[1726529848873,51.351184,132.03,132.0,10.11654092]
[1726529849062,51.351184,132.03,131.97,21.77470789]
[1726529849247,51.351184,132.03,131.98,10.11662722]
[1726529849569,51.351184,132.03,131.99,10.11662722]
[1726529849869,51.351184,132.03,132.0,10.11662722]
[1726529850047,51.351184,132.03,131.97,21.77470789]
[1726529850248,51.351184,132.03,131.98,10.11654217]
[1726529850466,51.351184,132.03,131.97,21.77470789]
[1726529850467,51.351184,132.03,131.99,10.11654217]
[1726529850671,51.351184,132.03,132.0,10.11654217]
[1726529850872,51.351184,132.03,131.97,21.77470789]
[1726529851072,51.351184,132.03,131.98,10.11528106]
[1726529851258,51.351184,132.03,131.97,21.77470789]
[1726529851259,7.5768,131.99,131.94,9.35005523]
[1726529851457,7.5768,131.99,131.92,0.2584707]
[1726529851458,23.776884,131.99,131.95,10.12313109]
[1726529851774,23.776884,131.99,131.93,9.35005523]
[1726529851950,23.776884,131.99,131.93,9.35666899]
[1726529852277,7.577,131.98,131.92,9.61513969]
[1726529853371,7.5778,131.97,131.92,9.61513969]
[1726529853548,7.5778,131.97,131.92,0.2584707]
[1726529856275,23.776884,131.99,131.92,14.19906743]
[1726529856480,20.0,131.98,131.92,14.19906743]
[1726529857552,22.6067,132.0,131.95,12.42465266]
[1726529858461,30.1824,132.0,131.94,12.42465266]
[1726529860084,30.1824,132.0,131.92,20.2584707]
[1726529860387,31.353184,131.99,131.92,32.68312336]
[1726529862276,7.577,131.98,131.92,32.68312336]
[1726529862661,31.353284,131.99,131.92,32.68312336]
[1726529863379,31.353284,131.99,131.93,13.94035806]
[1726529863583,31.353284,131.99,131.92,12.68312336]
[1726529864876,7.577,131.98,131.92,12.68312336]
[1726529865494,23.776884,131.97,131.92,12.68312336]
[1726529867284,23.776884,131.97,131.92,0.2584707]
[1726529867870,15.6482,131.96,131.92,0.2584707]
[1726529872389,23.2265,131.96,131.92,0.2584707]
[1726529873272,15.6482,131.96,131.92,0.2584707]
[1726529873477,23.2264,131.96,131.92,0.2584707]
[1726529875983,15.6482,131.96,131.92,0.2584707]
[1726529877273,23.2263,131.96,131.92,0.2584707]
[1726529877473,31.355684,131.95,131.92,0.2584707]
[1726529879493,7.5793,131.94,131.92,0.2584707]
[1726529879690,31.356584,131.93,131.92,0.2584707]
[1726529879893,67.886084,131.93,131.92,0.2584707]
[1726529880766,74.329984,131.93,131.92,0.2584707]
[1726529881387,74.329984,131.93,131.88,0.2584707]
[1726529881388,7.5815,131.9,131.88,0.2584707]
[1726529882693,20.0,131.9,131.88,0.2584707]
[1726529885597,27.5804,131.92,131.88,0.2584707]
[1726529885897,20.0,131.92,131.88,0.2584707]
[1726529886101,22.9734,131.93,131.88,14.19950785]
[1726529886787,22.9734,131.93,131.88,12.68312336]
[1726529888211,22.9734,131.93,131.89,30.0]
[1726529888890,16.5295,131.93,131.89,43.94098399]
[1726529889283,16.5295,131.93,131.89,42.42465266]
[1726529889783,23.511,131.96,131.9,13.94079043]
[1726529889988,23.776884,131.95,131.9,42.42465266]
[1726529890509,23.511,131.96,131.9,42.42465266]
[1726529890679,23.511,131.96,131.9,30.0]
[1726529891102,20.0,131.95,131.9,30.0]
[1726529892704,27.5786,131.95,131.9,30.0]
[1726529897014,31.356284,131.94,131.9,30.0]
[1726529897792,23.776884,131.94,131.9,30.0]
[1726529898006,27.5788,131.95,131.9,30.0]
[1726529915313,23.776884,131.94,131.9,30.0]
[1726529915895,31.357184,131.92,131.9,30.0]
[1726529922760,27.5798,131.93,131.9,30.0]
[1726529923423,23.776884,131.93,131.9,30.0]
[1726529923807,31.356684,131.93,131.9,30.0]
[1726529924328,20.0,131.94,131.9,30.0]
[1726529924534,27.5788,131.95,131.9,30.0]
[1726529924710,27.5788,131.95,131.9,42.42465266]
[1726529925127,20.0,131.95,131.9,42.42465266]
[1726529926734,20.0,131.96,131.91,12.42465266]
[1726529926922,20.0,131.96,131.91,43.94070571]
[1726529927438,7.5776,131.97,131.91,42.42465266]
[1726529929023,20.0,131.96,131.91,42.42465266]
[1726529930537,7.5781,131.96,131.91,42.42465266]
[1726529932239,20.0,131.96,131.92,1.51590574]
[1726529932532,20.0,131.96,131.92,42.42465266]
[1726529932933,20.0,131.97,131.92,42.42465266]
[1726529933239,20.0,131.96,131.92,30.0]
[1726529934536,20.0,131.96,131.92,42.42465266]
[1726529938430,20.0,131.96,131.93,12.67170656]
[1726529938752,20.0,131.96,131.93,30.0]
[1726529942457,20.0,131.96,131.93,42.66973719]
[1726529942765,20.0,131.96,131.93,30.0]
[1726529942960,20.0,131.98,131.94,12.42465266]
[1726529943256,20.0,131.98,131.94,42.42465266]
[1726529943458,20.0,131.98,131.94,30.0]
[1726529946731,7.5765,131.99,131.94,42.42465266]
[1726529948536,7.5765,131.99,131.94,30.0]
[1726529952668,7.5773,131.98,131.94,30.0]
[1726529955050,7.5774,131.97,131.94,30.0]
[1726529957774,7.5771,131.98,131.94,30.0]
[1726529957948,27.5765,131.99,131.94,30.0]
[1726529958456,27.5765,131.99,131.94,42.42465266]
[1726529958960,27.5765,131.99,131.94,12.42465266]
[1726529962981,27.5765,131.99,131.91,15.2409]
[1726529962982,31.353884,131.98,131.91,15.2409]
[1726529963274,31.353884,131.98,131.92,12.42465266]
[1726529963885,31.353884,131.98,131.93,12.42465266]
[1726529966968,7.577,131.98,131.91,15.2409]
[1726529967274,7.577,131.98,131.93,12.42465266]
[1726529967972,20.0,131.98,131.93,12.42465266]
[1726529969177,20.0,131.98,131.94,12.42465266]
[1726529969481,20.0,131.98,131.95,12.42465266]
[1726529970071,7.5759,132.0,131.95,12.42465266]
[1726529970466,20.0,131.99,131.95,12.42465266]
[1726529974061,7.5775,131.97,131.91,15.2409]
[1726529974264,7.577,131.98,131.92,42.42465266]
[1726529975173,23.776884,131.99,131.92,42.42465266]
[1726529975569,23.776884,131.99,131.93,10.1368258]
[1726529975759,23.776884,131.99,131.94,10.1368258]
[1726529975959,23.776884,131.99,131.95,10.1368258]
[1726529976163,23.776884,131.99,131.93,12.42465266]
[1726529976164,20.0,132.0,131.94,12.42465266]
[1726529976379,7.5765,131.99,131.95,10.13729072]
[1726529976580,7.5765,131.99,131.96,10.13729072]
[1726529976756,7.5765,131.99,131.94,12.42465266]
[1726529976955,7.5765,131.99,131.95,10.13634504]
[1726529977157,7.5765,131.99,131.96,10.13634504]
[1726529977357,7.5765,131.99,131.94,12.42465266]
[1726529977781,7.5765,131.99,131.95,10.13644142]
[1726529977984,7.5765,131.99,131.96,10.13644142]
[1726529978187,7.5765,131.99,131.94,12.42465266]
[1726529978394,7.5765,131.99,131.95,10.13684455]
[1726529978560,7.5765,131.99,131.96,10.13684455]
[1726529978890,27.5759,132.0,131.94,12.42465266]
[1726529979060,27.5759,132.0,131.95,10.13650893]
[1726529979260,27.5759,132.0,131.96,10.13650893]
[1726529979583,27.5759,132.0,131.94,12.42465266]
[1726529979762,27.5759,132.0,131.95,10.13425354]
[1726529979963,27.5759,132.0,131.96,10.13425354]
[1726529980163,27.5759,132.0,131.94,12.42465266]
[1726529980480,27.5759,132.0,131.95,10.13365719]
[1726529980670,27.5759,132.0,131.96,10.13365719]
[1726529980872,27.5759,132.0,131.94,12.42465266]
[1726529981186,27.5759,132.0,131.95,10.13417308]
[1726529981355,27.5759,132.0,131.96,10.13417308]
[1726529981664,27.5759,132.0,131.95,12.42465266]
[1726529981665,27.5759,132.0,131.97,10.13417308]
[1726529981862,27.5759,132.0,131.95,12.42465266]
[1726529982477,20.0,132.01,131.97,12.42465266]
[1726529983178,27.5756,132.01,131.96,12.42465266]
[1726529983390,7.5758,132.0,131.95,12.42465266]
[1726529987259,7.5758,132.0,131.96,12.42465266]
[1726529987458,20.0,132.01,131.96,12.42465266]
[1726529987459,27.5754,132.01,131.96,12.42465266]
[1726529988688,27.5754,132.01,131.94,6.0084]
[1726529988888,27.5754,132.01,131.96,12.42465266]
[1726529990793,20.0,132.01,131.97,12.42465266]
[1726529991383,20.0,132.01,131.98,12.42465266]
[1726529991895,0.2584707,132.02,132.0,12.42465266]
[1726529992105,0.2584707,132.02,132.01,12.42465266]
[1726529992390,0.2584707,132.02,132.0,12.42465266]
[1726529993371,0.2584707,132.02,131.98,6.1447]
[1726529993582,0.2584707,132.02,131.99,12.42465266]
[1726529993782,0.2584707,132.02,131.98,6.1447]
[1726529993981,0.2584707,132.02,131.99,12.42465266]
[1726529994567,0.2584707,132.02,132.01,30.0]
[1726529997193,0.2584707,132.02,132.01,42.42465266]
[1726530000194,0.2584707,132.02,132.01,30.0]
[1726530020583,0.2584707,132.02,132.01,31.5149268]
[1726530020816,0.2584707,132.02,132.01,43.93957946]
[1726530021994,0.2584707,132.02,132.01,42.42465266]
[1726530023993,0.2584707,132.02,132.01,30.0]
[1726530028703,67.3339547,132.02,132.01,30.0]
[1726530029020,51.353184,131.99,131.98,30.0]
[1726530029225,7.577,131.98,131.94,9.3632547]
[1726530029403,20.0,131.98,131.93,12.6637507]
[1726530029608,20.0,131.98,131.92,9.3632547]
[1726530029921,7.5776,131.97,131.93,42.67240407]
[1726530030126,23.2033,131.97,131.92,12.67240407]
[1726530030303,31.355484,131.96,131.89,22.03565877]
[1726530030502,31.355484,131.96,131.89,12.67240407]
[1726530030503,7.5791,131.95,131.89,12.67240407]
[1726530030695,7.5794,131.94,131.89,12.67240407]
[1726530030890,23.776884,131.96,131.9,30.0]
[1726530031100,20.0,131.95,131.9,42.42465266]
[1726530034830,15.6257,131.97,131.94,12.42465266]
[1726530035021,7.5767,131.99,131.93,12.42465266]
[1726530035321,7.5769,131.98,131.92,12.42465266]
[1726530035516,7.5769,131.98,131.93,1.51575483]
[1726530038315,7.5764,131.99,131.93,13.94040749]
[1726530038504,7.5764,131.99,131.94,13.9402668]
[1726530038701,7.5764,131.99,131.94,12.42465266]
[1726530040697,7.5764,131.99,131.91,21.51558276]
[1726530040919,7.5764,131.99,131.94,12.42465266]
[1726530043027,7.5764,131.99,131.94,42.42465266]
[1726530043430,7.5764,131.99,131.95,1.51558077]
[1726530043610,7.5764,131.99,131.94,42.42465266]
[1726530044607,7.5764,131.99,131.94,30.0]
[1726530044805,7.5764,131.99,131.94,42.42465266]
[1726530048150,7.5764,131.99,131.94,30.0]
[1726530048300,7.5764,131.99,131.94,42.42465266]
[1726530053058,7.5764,131.99,131.95,1.51557037]
[1726530054659,7.5764,131.99,131.94,42.42465266]
[1726530056660,7.5764,131.99,131.94,30.0]
[1726530057461,7.5764,131.99,131.93,12.42465266]
[1726530057660,7.5769,131.98,131.93,12.42465266]
[1726530058964,7.5769,131.98,131.92,12.42465266]
[1726530059143,7.5774,131.97,131.93,30.0]
[1726530059344,22.7367,131.96,131.93,30.0]
[1726530059548,7.5786,131.95,131.88,9.60520808]
[1726530059861,7.5786,131.95,131.88,12.68312336]
[1726530060065,7.5786,131.95,131.89,30.0]
[1726530061248,7.5793,131.94,131.89,30.0]
[1726530062061,7.5798,131.93,131.89,30.0]
[1726530062260,7.5798,131.93,131.88,0.2584707]
[1726530062449,7.5798,131.93,131.88,30.2584707]
[1726530063147,7.5798,131.93,131.88,0.2584707]
[1726530064967,20.0,131.94,131.9,12.42465266]
[1726530065176,7.5788,131.95,131.91,1.51602913]
[1726530066649,20.0,131.95,131.91,1.51602913]
[1726530066842,22.7368,131.96,131.92,12.42465266]
[1726530067052,15.1586,131.96,131.92,12.42465266]
[1726530069355,15.1586,131.96,131.91,12.42465266]
[1726530069553,15.1586,131.96,131.92,1.51586229]
[1726530070865,22.7367,131.96,131.91,12.42465266]
[1726530075180,22.7367,131.96,131.92,1.51586233]
[1726530075381,15.1586,131.96,131.92,1.51586233]
[1726530075594,13.6227,131.98,131.93,1.51577844]
[1726530076889,13.6227,131.98,131.92,12.42465266]
[1726530077991,6.0455,131.98,131.89,20.0]
[1726530078205,43.776884,131.97,131.9,30.0]
[1726530078502,43.776884,131.97,131.89,12.42465266]
[1726530078671,43.776884,131.97,131.9,12.42465266]
[1726530078992,43.776884,131.97,131.91,1.51606828]
[1726530079801,7.5781,131.96,131.91,1.51606828]
[1726530079972,20.0,131.97,131.93,12.42465266]
[1726530080173,16.3041,131.99,131.95,12.42465266]
[1726530080397,16.3041,131.99,131.96,1.51548754]
[1726530080592,6.5818,132.01,131.96,13.9401402]
[1726530081303,14.1573,132.01,131.96,13.9401402]
[1726530081500,14.1573,132.01,131.96,12.42465266]
[1726530085605,14.1573,132.01,131.95,12.42465266]
[1726530089410,7.5757,132.0,131.95,12.42465266]
[1726530090125,43.776884,132.0,131.92,28.09785266]
[1726530090422,43.776884,132.0,131.93,30.0]
[1726530090423,7.5772,131.98,131.93,30.0]
[1726530091098,7.5776,131.97,131.93,30.0]
[1726530091815,7.5776,131.97,131.9,12.42465266]
[1726530092022,7.5776,131.97,131.91,30.0]
[1726530093519,7.5781,131.96,131.91,30.0]
[1726530093719,7.5781,131.96,131.9,12.42465266]
[1726530096229,7.5787,131.95,131.89,12.42465266]
[1726530096432,7.5787,131.95,131.9,30.0]
[1726530098009,7.5787,131.95,131.9,42.42465266]
[1726530098331,51.355084,131.96,131.9,42.42465266]
[1726530102741,51.355084,131.96,131.9,30.0]
[1726530103237,51.355084,131.96,131.89,12.42465266]
[1726530105838,20.0,131.96,131.91,12.42465266]
[1726530106019,20.0,131.96,131.92,13.94051571]
[1726530106220,24.0755,131.97,131.92,12.42465266]
[1726530109037,7.5781,131.96,131.92,12.42465266]
[1726530109221,7.5781,131.96,131.91,12.42465266]
[1726530110241,24.0755,131.97,131.91,12.42465266]
[1726530110417,16.4979,131.97,131.91,12.42465266]
[1726530111122,16.4979,131.97,131.92,1.51586365]
[1726530111641,16.4979,131.97,131.93,1.51581205]
[1726530114742,15.1753,132.0,131.95,12.42465266]
[1726530115652,15.1753,132.0,131.96,1.51545376]
[1726530116232,15.1753,132.0,131.96,13.94010642]
[1726530116449,15.1753,132.0,131.96,12.42465266]
[1726530116621,7.8331707,132.02,131.96,12.42465266]
[1726530116946,0.2584707,132.02,131.97,1.51536723]
[1726530117133,0.2584707,132.02,131.99,12.42465266]
[1726530117343,0.2584707,132.02,132.0,13.93964347]
[1726530117654,0.2584707,132.02,132.01,12.42465266]
[1726530120345,0.2584707,132.02,132.01,42.42465266]
[1726530120931,0.2584707,132.02,132.01,30.0]
[1726530124237,0.2584707,132.02,132.01,42.42465266]
[1726530128866,0.2584707,132.02,132.01,30.0]
[1726530130166,0.2584707,132.02,132.01,42.42465266]
[1726530133382,0.2584707,132.02,132.01,12.42465266]
[1726530133677,0.2584707,132.02,132.0,12.42465266]
[1726530133894,0.2584707,132.02,131.99,12.42465266]
[1726530134062,0.2584707,132.02,132.0,30.0]
[1726530134483,0.2584707,132.02,131.99,12.42465266]
[1726530136381,0.2584707,132.02,131.98,12.42465266]
[1726530136581,0.2584707,132.02,131.99,30.0]
[1726530137167,0.2584707,132.02,131.96,12.42465266]
[1726530137368,0.2584707,132.02,131.97,12.42465266]
[1726530137580,0.2584707,132.02,131.98,30.0]
[1726530137887,0.2584707,132.02,131.97,12.42465266]
[1726530138290,0.2584707,132.02,131.98,1.51519259]
[1726530139889,0.2584707,132.02,132.0,12.42465266]
[1726530140068,0.2584707,132.02,132.01,13.93954001]
[1726530140394,0.2584707,132.02,132.01,12.42465266]
[1726530141669,0.2584707,132.02,132.01,13.93920204]
[1726530142088,0.2584707,132.02,132.01,12.42465266]
[1726530143314,0.2584707,132.02,132.01,13.93917026]
[1726530146172,0.2584707,132.02,132.01,57.71605426]
[1726530146788,0.2584707,132.06,132.01,57.71605426]
[1726530146988,0.2584707,132.06,132.05,12.42465266]
[1726530148172,0.2584707,132.06,132.04,12.42465266]
[1726530149982,0.2584707,132.06,132.05,13.93897421]
[1726530151393,0.2584707,132.06,132.03,12.42465266]
[1726530151574,0.2584707,132.06,132.0,20.0]
[1726530151898,0.2584707,132.06,132.03,12.42465266]
[1726530152201,0.2584707,132.06,132.04,12.42465266]
[1726530152400,0.2584707,132.06,132.01,30.0]
[1726530152597,0.2584707,132.06,132.04,12.42465266]